lending/lending_fUSD_20240622
["ID","MTS","AMOUNT","RATE_DAILY","PERIOD"]
[330149046,1719059432233,-529.33458606,0.00014999,2]
[330149047,1719059432242,-300.0,0.00016141,2]
[330149048,1719059432252,-1406.41,0.00016142,2]
[330149049,1719059432262,-499.99,0.00016142,2]
[330149050,1719059432272,-150.0,0.00016142,2]
[330149051,1719059432281,-2852.3,0.00016143,2]
[330149052,1719059432290,-299.99,0.00016143,4]
[330149053,1719059432299,-615.43,0.0001649,2]
[330149054,1719059432308,-420.0,0.00017645,2]
[330149055,1719059432317,-210.0,0.00017756,2]
[330149056,1719059432327,-250.0,0.00018035,2]
[330149057,1719059432338,-485.81,0.00018153,2]
[330149058,1719059432349,-219.09,0.00018453,2]
[330149059,1719059432359,-575.43,0.00018466,2]
[330149060,1719059432369,-182.85,0.00018492,2]
[330149061,1719059432379,-250.0,0.00018492,2]
[330149062,1719059432390,-1947.93,0.00018515,2]
[330149063,1719059432400,-23900.0,0.0001856,2]
[330149064,1719059432409,-789.99,0.00018664,2]
[330149065,1719059432418,-500.0,0.00018677,2]
[330149066,1719059432427,-500.0,0.00018686,2]
[330149067,1719059432437,-500.0,0.00018695,2]
[330149068,1719059432446,-400.0,0.00018709,2]
[330149069,1719059432456,-615.43,0.00018754,2]
[330149070,1719059432465,-667.0,0.000188,5]
[330149071,1719059432475,-600.0,0.00019035,2]
[330149072,1719059432483,-250.0,0.00019178,2]
[330149075,1719059432492,-587.0,0.00019289,2]
[330149078,1719059432501,-283.25,0.00019329,2]
[330149079,1719059432512,-159.40130325,0.0002,2]
[330149080,1719059432522,-242.23622098,0.00020672,2]
[330149081,1719059432531,-1213.69554,0.0002069,2]
[330149082,1719059432540,-541.31489527,0.00020776,2]
[330149083,1719059432549,-1000.0,0.000208,2]
[330149084,1719059432559,-150.0,0.00020805,2]
[330149085,1719059432569,-341.635691,0.00020822,2]
[330149086,1719059432579,-6609.077,0.00020897,2]
[330149087,1719059432588,-3874.2394,0.00020897,2]
[330149088,1719059432598,-1000.0,0.00020897,2]
[330149089,1719059432608,-150.0,0.00020919,2]
[330149090,1719059432617,-150.0,0.00020954,2]
[330149091,1719059432631,-915.49415804,0.0002097,3]
[330149092,1719059432642,-1776.55142805,0.00020972,2]
[330149093,1719059432652,-150.0,0.00020977,2]
[330149094,1719059432662,-753.48832543,0.00020995,2]
[330149095,1719059432671,-66803.5369583,0.00020997,2]
[330149096,1719059432681,-892.91925692,0.00020997,2]
[330149097,1719059432690,-2500.0,0.00021,2]
[330149098,1719059432699,-1250.0,0.00021,2]
[330149099,1719059432709,-615.43,0.00021018,2]
[330149100,1719059432718,-500.0,0.00021029,2]
[330149101,1719059432727,-500.0,0.00021029,2]
[330149102,1719059432737,-200.0,0.0002103,2]
[330149103,1719059432746,-500.0,0.0002103,2]
[330149104,1719059432755,-200.0,0.0002103,2]
[330149105,1719059432764,-400.0,0.00021048,2]
[330149106,1719059432774,-835.54,0.00021068,2]
[330149107,1719059432783,-452.78,0.00021068,2]
[330149108,1719059432793,-50000.0,0.0002107,2]
[330149109,1719059432802,-150.0,0.00021076,2]
[330149110,1719059432812,-156.0414729,0.00021079,2]
[330149111,1719059432821,-823.0,0.00021086,2]
[330149112,1719059432830,-915.49415804,0.0002109,3]
[330149113,1719059432840,-5800.0,0.00021092,2]
[330149114,1719059432849,-7500.0,0.000211,2]
[330149115,1719059432859,-5800.0,0.000211,2]
[330149116,1719059432868,-4064.36031506,0.000211,2]
[330149117,1719059432877,-165.07449154,0.000211,2]
[330149118,1719059432888,-154.98560786,0.000211,2]
[330149119,1719059432897,-164.37168205,0.000211,2]
[330149120,1719059432907,-10000.0,0.000211,2]
[330149121,1719059432917,-5776.9066164,0.000211,2]
[330149122,1719059432926,-1000.0,0.000211,2]
[330149123,1719059432936,-150.0,0.00021113,2]
[330149124,1719059432946,-150.0,0.00021127,2]
[330149125,1719059432956,-150.0,0.0002114,2]
[330149126,1719059432965,-52559.586274,0.00021169,3]
[330149127,1719059432974,-155.68,0.00021169,2]
[330149128,1719059432984,-52559.586274,0.0002117,3]
[330149129,1719059432993,-8759.93104567,0.00021179,3]
[330149130,1719059433003,-105119.172548,0.0002118,3]
[330149131,1719059433012,-74930.2073785,0.0002118,3]
[330149132,1719059433021,-24976.7357928,0.0002118,3]
[330149133,1719059433033,-1776.55142798,0.00021185,2]
[330149134,1719059433045,-150.0,0.00021186,2]
[330149135,1719059433055,-150.0,0.00021186,2]
[330149136,1719059433064,-150.0,0.00021186,2]
[330149137,1719059433075,-150.0,0.00021186,2]
[330149138,1719059433085,-3231.21978777,0.0002119,3]
[330149139,1719059433098,-7552.99627616,0.0002119,3]
[330149140,1719059433109,-437.8405502,0.0002119,3]
[330149141,1719059433121,-791.63952452,0.0002119,3]
[330149142,1719059433134,-1299.4208445,0.0002119,3]
[330149143,1719059433217,-530.865,0.0002119,3]
[330149144,1719059433229,-4259.61070056,0.0002119,3]
[330149145,1719059433242,-421.94944597,0.0002119,3]
[330149146,1719059433259,-472.53583505,0.0002119,3]
[330149147,1719059433271,-6738.71209133,0.0002119,3]
[330149148,1719059433348,-703.37788318,0.0002119,3]
[330149149,1719059433360,-1974.8225,0.0002119,3]
[330149150,1719059433374,-536.57456729,0.0002119,3]
[330149151,1719059433387,-491.40445475,0.0002119,3]
[330149152,1719059433403,-291.826501,0.0002119,3]
[330149153,1719059433425,-4631.34297496,0.0002119,3]
[330149154,1719059433438,-630.10225962,0.0002119,3]
[330149155,1719059433449,-463.05,0.0002119,3]
[330149160,1719059437937,-258.55511764,0.00013678,2]
[330149161,1719059437948,-157.6614531,0.00013779,2]
[330149162,1719059437959,-1104.18234119,0.000211,2]
[330149163,1719059437970,-79.104634,0.0002119,3]
[330149164,1719059437983,-1887.86213843,0.0002119,3]
[330149165,1719059437996,-406.46916604,0.0002119,3]
[330149166,1719059438009,-2309.93221308,0.0002119,3]
[330149167,1719059438040,-3656.99587999,0.0002119,3]
[330149168,1719059438051,-3022.81616093,0.0002119,3]
[330149169,1719059438063,-292874.63777231,0.0002119,3]
[330149170,1719059438078,-1163.382,0.0002119,3]
[330149171,1719059438091,-17463.10267543,0.0002119,3]
[330149172,1719059438110,-428.61941707,0.0002119,3]
[330149173,1719059438128,-580.78844532,0.0002119,3]
[330149174,1719059438189,-9164.21883594,0.0002119,3]
[330149175,1719059438200,-155.68,0.0002119,2]
[330149176,1719059438212,-2222.68180083,0.0002119,2]
[330149177,1719059438223,-170.46791393,0.0002119,2]
[330149178,1719059438235,-4443.92866554,0.0002119,3]
[330149185,1719059440188,-441.72500004,0.0002119,3]
[330149186,1719059440200,-1075.18,0.0002119,3]
[330149187,1719059440246,-404.39000001,0.0002119,3]
[330149188,1719059440263,-11188.42004702,0.0002119,3]
[330149190,1719059440746,-805.26599995,0.0002119,3]
[330149191,1719059440758,-746.54000001,0.0002119,3]
[330149192,1719059440770,-8708.97670485,0.0002119,3]
[330149193,1719059440782,-625.335,0.0002119,3]
[330149198,1719059443239,-3520.05617788,0.0002119,3]
[330149199,1719059443344,-122.22216091,0.0002119,3]
[330149200,1719059443384,-2094.59349262,0.0002119,3]
[330149209,1719059446002,-959.66047797,0.00020766,2]
[330149210,1719059446013,-142.21614242,0.00020766,2]
[330149211,1719059446022,-3552.34301921,0.0002119,3]
[330149212,1719059446038,-1840.68408029,0.0002119,3]
[330149213,1719059446053,-1499.90008,0.0002119,3]
[330149214,1719059446065,-493.09011844,0.0002119,3]
[330149215,1719059446081,-15228.53491843,0.0002119,3]
[330149216,1719059446092,-436.11510539,0.0002119,3]
[330149217,1719059446111,-17542.70841109,0.0002119,3]
[330149218,1719059446125,-1900.41,0.0002119,3]
[330149219,1719059446136,-769.02819339,0.0002119,3]
[330149220,1719059446152,-3150.39333094,0.0002119,3]
[330149221,1719059446163,-2117.67435728,0.0002119,3]
[330149222,1719059446269,-2121.5226734,0.0002119,3]
[330149223,1719059446281,-2532.01049383,0.0002119,3]
[330149224,1719059446294,-856.20926424,0.0002119,3]
[330149225,1719059446314,-5177.5175671,0.0002119,3]
[330149226,1719059446326,-255.637,0.0002119,3]
[330149250,1719059594155,200.0,0.00025666,120]
[330149251,1719059597204,1000.0,0.00025666,120]
[330149258,1719059645530,12384.15188346,0.000118,2]
[330149263,1719059671463,13753.00780648,6.94e-05,2]
[330149270,1719059718681,500.0,0.00012948,2]
[330149271,1719059719082,500.0,0.00012948,2]
[330149272,1719059719437,500.0,0.00012948,2]
[330149273,1719059721058,500.0,0.00012948,2]
[330149274,1719059721190,500.0,0.00012948,2]
[330149275,1719059721510,500.0,0.00012948,2]
[330149277,1719059721930,500.0,0.00012948,2]
[330149278,1719059722270,500.0,0.00012948,2]
[330149279,1719059722622,500.0,0.00012948,2]
[330149280,1719059722963,500.0,0.00012948,2]
[330149281,1719059723311,500.0,0.00012948,2]
[330149282,1719059723685,500.0,0.00012948,2]
[330149283,1719059724891,500.0,0.00012948,2]
[330149284,1719059725323,976.0,0.00012948,2]
[330149287,1719059743438,4610.45550491,0.000123,2]
[330149337,1719060145333,155.36,0.00025275,120]
[330149382,1719060564225,-304.98751848,0.00013564,2]
[330149383,1719060564245,-1819.25141275,0.00013579,2]
[330149397,1719060632521,-566.44,0.00013664,2]
[330149398,1719060632532,-155.0,0.00013779,2]
[330149399,1719060632541,-61.42,0.000139,2]
[330149400,1719060632553,-1499.09671421,0.000139,2]
[330149401,1719060632563,-486.480698,0.00013908,2]
[330149402,1719060632572,-339.24007506,0.00013908,2]
[330149403,1719060632582,-1585.36135378,0.00013909,2]
[330149404,1719060632592,-91.60483836,0.00013986,2]
[330149405,1719060632604,-247.6352367,0.00013986,2]
[330149406,1719060632613,-152.3647633,0.0001399,2]
[330149408,1719060632735,-3919.30227256,0.0001399,2]
[330149409,1719060632744,-320.91,0.0001399,2]
[330149410,1719060632753,-320.91,0.0001399,2]
[330149411,1719060632762,-320.91,0.0001399,2]
[330149412,1719060632772,-12.96772854,0.0001399,2]
[330149427,1719060638507,-307.94227146,0.0001399,2]
[330149429,1719060638518,-320.91,0.0001399,2]
[330149431,1719060638530,-214.41652595,0.0001399,2]
[330149434,1719060638542,-106.49347405,0.0001399,2]
[330149435,1719060638551,-196.7997818,0.0001399,2]
[330149438,1719060638563,-124.1102182,0.0001399,2]
[330149440,1719060638573,-320.91,0.0001399,2]
[330149442,1719060638582,-38.6397818,0.0001399,2]
[330149447,1719060638631,-282.2702182,0.0001399,2]
[330149449,1719060638641,-320.91,0.0001399,2]
[330149451,1719060638651,-320.91,0.0001399,2]
[330149453,1719060638661,-320.91,0.0001399,2]
[330149455,1719060638671,-208.9997818,0.0001399,2]
[330149458,1719060638684,-111.9102182,0.0001399,2]
[330149460,1719060638694,-320.91,0.0001399,2]
[330149461,1719060638703,-320.91,0.0001399,2]
[330149463,1719060638713,-320.91,0.0001399,2]
[330149464,1719060638728,-320.91,0.0001399,2]
[330149465,1719060638739,-320.91,0.0001399,2]
[330149466,1719060638750,-320.91,0.0001399,2]
[330149467,1719060638760,-320.91,0.0001399,2]
[330149468,1719060638771,-320.91,0.0001399,2]
[330149469,1719060638782,-320.91,0.0001399,2]
[330149470,1719060638792,-320.91,0.0001399,2]
[330149471,1719060638804,-320.91,0.0001399,2]
[330149472,1719060638814,-320.91,0.0001399,2]
[330149473,1719060638825,-320.91,0.0001399,2]
[330149474,1719060638835,-320.91,0.0001399,2]
[330149475,1719060638846,-320.91,0.0001399,2]
[330149476,1719060638856,-320.91,0.0001399,2]
[330149477,1719060638866,-320.91,0.0001399,2]
[330149478,1719060638876,-320.91,0.0001399,2]
[330149479,1719060638888,-320.91,0.0001399,2]
[330149480,1719060638899,-320.91,0.0001399,2]
[330149481,1719060638909,-320.91,0.0001399,2]
[330149482,1719060638920,-320.91,0.0001399,2]
[330149483,1719060638931,-320.91,0.0001399,2]
[330149484,1719060638941,-320.91,0.0001399,2]
[330149485,1719060638951,-320.91,0.0001399,2]
[330149486,1719060638961,-320.91,0.0001399,2]
[330149487,1719060638971,-320.91,0.0001399,2]
[330149488,1719060638982,-320.91,0.0001399,2]
[330149489,1719060638992,-320.91,0.0001399,2]
[330149490,1719060639003,-320.91,0.0001399,2]
[330149491,1719060639013,-320.91,0.0001399,2]
[330149492,1719060639023,-213.9144506,0.0001399,2]
[330149493,1719060639037,-106.9955494,0.0001399,2]
[330149494,1719060639047,-320.91,0.0001399,2]
[330149495,1719060639058,-104.17231848,0.0001399,2]
[330149496,1719060639071,-216.73768152,0.0001399,2]
[330149497,1719060639082,-320.91,0.0001399,2]
[330149498,1719060639093,-136.07336246,0.0001399,2]
[330149505,1719060640245,-184.83663754,0.0001399,2]
[330149506,1719060640255,-320.91,0.0001399,2]
[330149507,1719060640265,-320.91,0.0001399,2]
[330149508,1719060640275,-130.94935794,0.0001399,2]
[330149509,1719060640287,-189.96064206,0.0001399,2]
[330149510,1719060640296,-320.91,0.0001399,2]
[330149511,1719060640306,-320.91,0.0001399,2]
[330149512,1719060640316,-320.91,0.0001399,2]
[330149513,1719060640326,-320.91,0.0001399,2]
[330149514,1719060640335,-320.91,0.0001399,2]
[330149515,1719060640345,-320.91,0.0001399,2]
[330149516,1719060640356,-320.91,0.0001399,2]
[330149517,1719060640366,-320.91,0.0001399,2]
[330149518,1719060640377,-320.91,0.0001399,2]
[330149519,1719060640387,-320.91,0.0001399,2]
[330149520,1719060640396,-320.91,0.0001399,2]
[330149521,1719060640406,-320.91,0.0001399,2]
[330149522,1719060640416,-320.91,0.0001399,2]
[330149523,1719060640426,-320.91,0.0001399,2]
[330149524,1719060640436,-320.91,0.0001399,2]
[330149525,1719060640447,-320.91,0.0001399,2]
[330149526,1719060640461,-320.91,0.0001399,2]
[330149527,1719060640471,-320.91,0.0001399,2]
[330149528,1719060640481,-320.91,0.0001399,2]
[330149529,1719060640491,-320.91,0.0001399,2]
[330149530,1719060640502,-320.91,0.0001399,2]
[330149531,1719060640511,-320.91,0.0001399,2]
[330149532,1719060640668,-320.91,0.0001399,2]
[330149533,1719060640678,-320.91,0.0001399,2]
[330149534,1719060640688,-320.91,0.0001399,2]
[330149535,1719060640698,-320.91,0.0001399,2]
[330149536,1719060640708,-320.91,0.0001399,2]
[330149537,1719060640718,-320.91,0.0001399,2]
[330149538,1719060640727,-320.91,0.0001399,2]
[330149539,1719060640737,-320.91,0.0001399,2]
[330149540,1719060640747,-320.91,0.0001399,2]
[330149541,1719060640758,-320.91,0.0001399,2]
[330149542,1719060640768,-320.91,0.0001399,2]
[330149543,1719060640778,-320.91,0.0001399,2]
[330149544,1719060640788,-320.91,0.0001399,2]
[330149545,1719060640798,-320.91,0.0001399,2]
[330149546,1719060640808,-320.91,0.0001399,2]
[330149547,1719060640818,-1111.0,0.00013999,2]
[330149548,1719060640827,-1111.0,0.00013999,2]
[330149549,1719060640837,-1111.0,0.00013999,2]
[330149550,1719060640847,-1111.0,0.00013999,2]
[330149551,1719060640857,-626.72,0.00013999,2]
[330149552,1719060640867,-272727.20783014,0.00014,2]
[330149553,1719060640884,-17902.17997761,0.00014,2]
[330149554,1719060640917,-320.91,0.0001399,2]
[330149555,1719060640927,-3177.93174084,0.00014,2]
[330149556,1719060640942,-523.392,0.00014,2]
[330149557,1719060641093,-320.91,0.0001399,2]
[330149558,1719060641103,-34.81425126,0.00014,2]
[330149559,1719060641115,-975.50742252,0.00014,2]
[330149560,1719060641128,-359.48000001,0.00014,2]
[330149561,1719060641140,-588.25655239,0.00014,2]
[330149562,1719060641151,-1234.77609435,0.00014,2]
[330149563,1719060641195,-320.91,0.0001399,2]
[330149564,1719060641205,-320.91,0.0001399,2]
[330149565,1719060641215,-7721166.40272183,0.00014,2]
[330149566,1719060641225,-1000.19,0.00014,2]
[330149567,1719060641235,-1970.4759543,0.00014508,2]
[330149568,1719060641246,-1585.36135374,0.00014708,2]
[330149569,1719060641256,-174.49944535,0.00014709,2]
[330149570,1719060641266,-631.70890614,0.000149,2]
[330149571,1719060641276,-143659.1624032,0.00015,2]
[330149572,1719060641286,-3967.57968155,0.00015,2]
[330149573,1719060641296,-1970.47595423,0.0001545,2]
[330149574,1719060641305,-394.99,0.00015498,2]
[330149575,1719060641315,-1585.36135374,0.00015507,2]
[330149576,1719060641325,-250.0,0.00015687,2]
[330149577,1719060641334,-1000.0,0.00015687,2]
[330149578,1719060641344,-236.54273069,0.00015694,2]
[330149579,1719060641354,-6764.08,0.0001574,2]
[330149580,1719060641363,-250.0,0.0001583,2]
[330149581,1719060641375,-1298.28,0.0001588,2]
[330149582,1719060641384,-566.44,0.00015928,2]
[330149583,1719060641394,-176.87,0.00015963,2]
[330149584,1719060641404,-1585.36135374,0.00016306,2]
[330149585,1719060641413,-1970.47595423,0.00016391,2]
[330149586,1719060641423,-1585.36135374,0.00017105,2]
[330149587,1719060641432,-1970.47595423,0.00017333,2]
[330149588,1719060641444,-176.87,0.00017559,2]
[330149589,1719060641457,-1000.0,0.00017648,2]
[330149590,1719060641466,-1585.36135374,0.00017904,2]
[330149591,1719060641476,-566.44,0.00018192,2]
[330149592,1719060641487,-1970.47595423,0.00018275,2]
[330149593,1719060641497,-13607.66423027,0.00018495,2]
[330149594,1719060641506,-500.0,0.00018607,2]
[330149595,1719060641516,-500.0,0.00018615,2]
[330149596,1719060641525,-1298.28,0.0001862,2]
[330149597,1719060641536,-500.0,0.00018624,2]
[330149598,1719060641546,-500.0,0.00018633,2]
[330149599,1719060641555,-500.0,0.00018642,2]
[330149600,1719060641564,-500.0,0.00018651,2]
[330149601,1719060641574,-500.0,0.00018659,2]
[330149602,1719060641583,-500.0,0.00018668,2]
[330149603,1719060641594,-500.0,0.00018677,2]
[330149604,1719060641603,-500.0,0.00018686,2]
[330149605,1719060641612,-500.0,0.00018695,2]
[330149606,1719060641622,-12810.39028794,0.00018695,2]
[330149607,1719060641631,-1585.36135374,0.00018703,2]
[330149608,1719060641641,-13607.66423016,0.00018895,2]
[330149609,1719060641650,-176.87,0.00019156,2]
[330149610,1719060641660,-250.0,0.00019178,2]
[330149611,1719060641669,-1970.47595423,0.00019217,2]
[330149612,1719060641678,-13607.66423016,0.00019294,2]
[330149613,1719060641689,-1585.36135374,0.00019502,2]
[330149614,1719060641700,-1000.0,0.00019609,2]
[330149615,1719060641711,-162.588963,0.00019686,2]
[330149616,1719060641725,-747.068877,0.00019686,2]
[330149617,1719060641736,-904.994799,0.00019686,2]
[330149618,1719060641746,-177.163462,0.00019686,2]
[330149619,1719060641756,-209.612279,0.00019686,2]
[330149620,1719060641767,-13607.66423016,0.00019694,2]
[330149621,1719060641779,-443.060903,0.00019726,2]
[330149622,1719060641789,-747.068877,0.00019932,2]
[330149623,1719060641800,-904.994799,0.00019932,2]
[330149624,1719060641810,-7148.95515304,0.0002,2]
[330149625,1719060641821,-13607.66423016,0.00020093,2]
[330149626,1719060641831,-1970.47595423,0.00020158,2]
[330149627,1719060641842,-747.068877,0.00020178,2]
[330149628,1719060641851,-904.994799,0.00020178,2]
[330149629,1719060641861,-747.43,0.0002022,2]
[330149630,1719060641870,-155.36,0.0002022,2]
[330149631,1719060641881,-747.43,0.00020225,2]
[330149632,1719060641891,-747.43,0.00020231,2]
[330149633,1719060641901,-747.43,0.00020236,2]
[330149634,1719060641910,-747.43,0.00020241,2]
[330149635,1719060641920,-747.43,0.00020247,2]
[330149636,1719060641929,-747.43,0.00020252,2]
[330149637,1719060641939,-747.43,0.00020257,2]
[330149638,1719060641949,-747.43,0.00020262,2]
[330149639,1719060641959,-747.43,0.00020268,2]
[330149640,1719060641970,-747.43,0.00020273,2]
[330149641,1719060641980,-747.43,0.00020278,2]
[330149642,1719060641990,-168.08,0.0002028,2]
[330149643,1719060641999,-747.43,0.00020284,2]
[330149644,1719060642009,-747.43,0.00020289,2]
[330149645,1719060642018,-747.43,0.00020294,2]
[330149646,1719060642027,-747.43,0.000203,2]
[330149647,1719060642038,-1585.36135374,0.00020301,2]
[330149648,1719060642048,-747.43,0.00020305,2]
[330149649,1719060642058,-747.43,0.0002031,2]
[330149650,1719060642069,-747.43,0.00020316,2]
[330149651,1719060642079,-747.43,0.00020321,2]
[330149652,1719060642090,-747.068877,0.00020424,2]
[330149653,1719060642100,-904.994799,0.00020424,2]
[330149654,1719060642111,-566.44,0.00020456,2]
[330149655,1719060642122,-13607.66423016,0.00020493,2]
[330149656,1719060642133,-443.060903,0.00020548,2]
[330149657,1719060642143,-1403.743,0.00020599,2]
[330149658,1719060642153,-1830.0,0.00020599,2]
[330149659,1719060642162,-359.0,0.00020599,2]
[330149660,1719060642172,-1653.0,0.00020599,2]
[330149661,1719060642181,-447.0,0.00020599,2]
[330149662,1719060642191,-801.0,0.00020599,2]
[330149663,1719060642200,-150.0,0.00020599,2]
[330149664,1719060642210,-2410.0,0.00020599,2]
[330149665,1719060642219,-1304.0,0.00020599,2]
[330149666,1719060642230,-1981.0,0.00020599,2]
[330149667,1719060642240,-3198.0,0.00020599,2]
[330149668,1719060642251,-547.0,0.00020599,2]
[330149669,1719060642262,-5163.0,0.00020599,2]
[330149670,1719060642272,-5794.0,0.00020599,2]
[330149671,1719060642284,-290.0,0.00020599,2]
[330149672,1719060642294,-38125.0,0.00020599,2]
[330149673,1719060642305,-747.068877,0.0002067,2]
[330149674,1719060642316,-904.994799,0.0002067,2]
[330149675,1719060642327,-1081.63259244,0.00020766,2]
[330149676,1719060642337,-2552.75662175,0.000208,2]
[330149677,1719060642346,-17164.7297512,0.000208,3]
[330149678,1719060642355,-1141.0,0.000208,2]
[330149679,1719060642366,-13607.66423016,0.00020892,2]
[330149680,1719060642376,-600143.588978,0.000209,3]
[330149681,1719060642386,-532.0779,0.0002097,2]
[330149682,1719060642397,-1000.0,0.0002097,2]
[330149683,1719060642408,-524.0,0.00020996,2]
[330149684,1719060642418,-500.0,0.0002103,2]
[330149685,1719060642428,-200.0,0.0002103,2]
[330149686,1719060642439,-155.5729,0.000211,2]
[330149687,1719060642452,-829.38072415,0.000211,2]
[330149688,1719060642463,-164.27730513,0.000211,2]
[330149689,1719060642472,-10000.0,0.000211,2]
[330149690,1719060642482,-1000.0,0.000211,2]
[330149691,1719060642493,-160.0,0.000211,2]
[330149692,1719060642503,-22123.08841133,0.000211,2]
[330149693,1719060642512,-1585.36135374,0.000211,2]
[330149694,1719060642522,-5800.0,0.000211,2]
[330149695,1719060642534,-1970.47595423,0.000211,2]
[330149696,1719060642543,-3036.1092377,0.00021181,2]
[330149697,1719060642556,-2425.7794825,0.00021181,2]
[330149698,1719060642567,-20537.1431372,0.00021181,2]
[330149699,1719060642578,-209.08499402,0.00021189,2]
[330149700,1719060642588,-3373.86331185,0.00021189,2]
[330149701,1719060642598,-10534.42724603,0.00021189,2]
[330149702,1719060642607,-1000.0,0.0002119,2]
[330149703,1719060642617,-1000.0,0.0002119,2]
[330149704,1719060642628,-1000.0,0.0002119,2]
[330149705,1719060642637,-1000.0,0.0002119,2]
[330149706,1719060642647,-1000.0,0.0002119,2]
[330149707,1719060642657,-1000.0,0.0002119,2]
[330149708,1719060642667,-753.32555536,0.0002119,2]
[330149709,1719060642677,-151.0,0.0002119,2]
[330149710,1719060642686,-267.659537,0.0002119,2]
[330149711,1719060642696,-1011.41295,0.0002119,2]
[330149712,1719060642706,-7363.9721293,0.00021196,2]
[330149713,1719060642718,-5053412.1509614,0.000212,4]
[330149714,1719060642733,-86780.78830315,0.000212,4]
[330149715,1719060642744,-7177.7,0.000212,4]
[330149716,1719060642756,-5301.01197096,0.000212,4]
[330149729,1719060643484,-320.91,0.0001399,2]
[330149730,1719060643496,-320.91,0.0001399,2]
[330149731,1719060643505,-320.91,0.0001399,2]
[330149732,1719060643515,-320.91,0.0001399,2]
[330149733,1719060643524,-320.91,0.0001399,2]
[330149734,1719060643534,-320.91,0.0001399,2]
[330149735,1719060643544,-748.72875439,0.000212,4]
[330149736,1719060643618,-700.21667497,0.000212,4]
[330149737,1719060643862,-712.04599,0.000212,4]
[330149738,1719060643908,-9901.98761922,0.000212,4]
[330149739,1719060643921,-795.61370028,0.000212,4]
[330149740,1719060644021,-2993.38792599,0.000212,4]
[330149741,1719060644032,-500.0,0.000212,4]
[330149742,1719060644044,-670.14303817,0.000212,4]
[330149743,1719060644056,-2930.15933922,0.000212,4]
[330149747,1719060646320,-1346.7,0.000139,2]
[330149748,1719060646332,-324.95834368,0.000139,2]
[330149749,1719060646343,-2654.17372556,0.000139,2]
[330149750,1719060646355,-429.44774596,0.000139,2]
[330149751,1719060646388,-470.22347517,0.000139,2]
[330149752,1719060646546,-1083.001,0.000139,2]
[330149753,1719060646557,-1118.70652312,0.000139,2]
[330149754,1719060646567,-3709.79043033,0.000212,4]
[330149755,1719060646583,-2407.16190883,0.000212,4]
[330149756,1719060646593,-494.17574675,0.000212,4]
[330149757,1719060646604,-470.22347517,0.000212,4]
[330149758,1719060646615,-17512.97616655,0.000212,4]
[330149759,1719060646639,-542.53107426,0.000212,4]
[330149760,1719060646655,-851.41252935,0.000212,4]
[330149761,1719060646666,-366.97169678,0.000212,4]
[330149762,1719060646678,-41285.31494061,0.000212,4]
[330149763,1719060646689,-28412.58664306,0.000212,4]
[330149764,1719060646700,-2535.44900344,0.000212,4]
[330149765,1719060646715,-18453.50087886,0.000212,4]
[330149766,1719060646726,-17140.91276986,0.000212,4]
[330149767,1719060646737,-5492.455,0.000212,4]
[330149773,1719060793855,200.0,0.00025777,120]
[330149775,1719060797311,1000.0,0.00025777,120]
[330149787,1719060870371,150.5,0.0002119,30]
[330149788,1719060871574,150.5,0.0002118,30]
[330149789,1719060872057,254.49,0.0002117,30]
[330149813,1719061833594,-473.88,0.00017412,2]
[330149814,1719061833605,-1000.0,0.00019279,2]
[330149815,1719061833614,-369.95,0.00019291,2]
[330149816,1719061833623,-983.55,0.00019294,2]